bitfinex/quotes_SOLUSD_20240713
["timestamp","ask_amount","ask_price","bid_price","bid_amount"]
[1720875568982,2.84396344,140.7,140.64,16.265]
[1720875569287,2.84396426,140.69,140.64,16.265]
[1720875569495,45.0,140.71,140.64,16.265]
[1720875569673,2.84396508,140.7,140.64,16.265]
[1720875569873,2.84396508,140.69,140.64,16.265]
[1720875570109,45.0,140.71,140.64,16.265]
[1720875570294,2.84396508,140.7,140.64,16.265]
[1720875570610,2.84396508,140.69,140.64,16.265]
[1720875570893,66.39,140.71,140.64,16.265]
[1720875571098,2.8440796,140.7,140.63,6.6007]
[1720875571267,2.8440796,140.69,140.63,6.6007]
[1720875571467,66.39,140.71,140.63,6.6007]
[1720875571771,2.84404308,140.7,140.63,6.6007]
[1720875571983,66.39,140.71,140.63,6.6007]
[1720875572189,2.8440796,140.69,140.63,6.6007]
[1720875572378,66.39,140.71,140.63,6.6007]
[1720875572579,2.84408042,140.7,140.63,6.6007]
[1720875572797,2.84408042,140.69,140.63,6.6007]
[1720875572996,66.39,140.71,140.63,6.6007]
[1720875573170,2.84404308,140.7,140.63,6.6007]
[1720875573373,2.84404308,140.69,140.63,6.6007]
[1720875573683,66.39,140.71,140.63,6.6007]
[1720875573889,2.84408042,140.7,140.63,6.6007]
[1720875574093,2.84408042,140.69,140.63,6.6007]
[1720875574296,66.39,140.71,140.63,6.6007]
[1720875574595,2.84407878,140.7,140.63,6.6007]
[1720875574801,2.84407878,140.69,140.63,6.6007]
[1720875574972,66.39,140.71,140.63,6.6007]
[1720875575167,2.84407878,140.7,140.63,6.6007]
[1720875575570,2.84410611,140.69,140.63,6.6007]
[1720875575776,2.84410611,140.68,140.63,6.6007]
[1720875575977,2.84410611,140.7,140.63,6.6007]
[1720875576602,34.23410611,140.7,140.63,6.6007]
[1720875576767,10.0,140.68,140.63,6.6007]
[1720875576973,2.84410611,140.67,140.63,6.6007]
[1720875577173,47.84410611,140.67,140.63,6.6007]
[1720875577373,2.84410611,140.66,140.63,6.6007]
[1720875578803,45.0,140.67,140.63,6.6007]
[1720875579095,2.84532251,140.66,140.61,16.3561]
[1720875579299,2.84532251,140.65,140.61,16.3561]
[1720875579507,66.39,140.67,140.61,16.3561]
[1720875579685,2.84574011,140.66,140.61,16.3561]
[1720875580006,2.84574011,140.65,140.61,16.3561]
[1720875580220,2.84574011,140.66,140.61,16.3561]
[1720875580381,2.84581062,140.65,140.61,16.3561]
[1720875580585,66.39,140.67,140.61,16.3561]
[1720875580788,2.8457791,140.66,140.61,16.3561]
[1720875581003,2.8457791,140.65,140.61,16.3561]
[1720875581191,66.39,140.67,140.61,16.3561]
[1720875581394,2.84577746,140.66,140.61,16.3561]
[1720875581591,2.84577746,140.65,140.61,16.3561]
[1720875581793,2.84577746,140.66,140.61,16.3561]
[1720875582001,2.84577828,140.65,140.61,16.3561]
[1720875582203,66.39,140.67,140.61,16.3561]
[1720875582377,2.8457791,140.66,140.61,16.3561]
[1720875582582,66.39,140.67,140.61,16.3561]
[1720875582782,2.84577828,140.66,140.61,16.3561]
[1720875583016,2.84577828,140.65,140.61,16.3561]
[1720875583210,69.22813176,140.67,140.61,16.3561]
[1720875583401,2.84577746,140.66,140.61,16.3561]
[1720875583708,2.84577746,140.65,140.61,16.3561]
[1720875583895,2.84577746,140.66,140.61,16.3561]
[1720875584096,2.84577828,140.65,140.61,16.3561]
[1720875584315,69.22813176,140.67,140.61,16.3561]
[1720875584619,2.8457791,140.66,140.61,16.3561]
[1720875584789,2.8457791,140.65,140.61,16.3561]
[1720875584984,69.22813176,140.67,140.61,16.3561]
[1720875585190,2.84577746,140.66,140.61,16.3561]
[1720875585491,69.22813176,140.67,140.61,16.3561]
[1720875585701,2.84577828,140.66,140.61,16.3561]
[1720875585894,2.84577828,140.65,140.61,16.3561]
[1720875586093,69.22813176,140.67,140.61,16.3561]
[1720875586334,2.8457791,140.66,140.61,16.3561]
[1720875586494,2.8457791,140.65,140.61,16.3561]
[1720875586694,69.22813176,140.67,140.61,16.3561]
[1720875586902,2.84577746,140.66,140.61,16.3561]
[1720875587213,2.84577746,140.65,140.61,16.3561]
[1720875587414,2.84577746,140.66,140.61,16.3561]
[1720875587601,2.84599486,140.65,140.61,16.3561]
[1720875587923,45.0,140.67,140.61,16.3561]
[1720875588419,27.34857639,140.71,140.61,17.77838341]
[1720875588597,2.84524945,140.7,140.61,17.77838341]
[1720875588921,2.84528435,140.69,140.61,17.77838341]
[1720875589127,2.84528435,140.68,140.61,17.77838341]
[1720875589417,2.84528516,140.69,140.61,16.3561]
[1720875589827,47.84528516,140.69,140.61,16.3561]
[1720875589992,2.84528516,140.68,140.61,16.3561]
[1720875590202,2.84528516,140.67,140.61,16.3561]
[1720875590597,47.84528516,140.68,140.61,16.3561]
[1720875590827,2.84528516,140.67,140.61,16.3561]
[1720875592306,2.8454362,140.66,140.61,16.3561]
[1720875592500,45.0,140.68,140.61,16.3561]
[1720875592711,31.39,140.7,140.61,16.3561]
[1720875592712,45.0,140.69,140.61,16.3561]
[1720875593011,2.84543538,140.68,140.61,16.3561]
[1720875593210,2.84543538,140.67,140.61,16.3561]
[1720875593411,2.84543538,140.66,140.61,16.3561]
[1720875593627,2.84543538,140.68,140.61,16.3561]
[1720875593822,2.8454566,140.67,140.61,16.3561]
[1720875594111,2.8454566,140.66,140.61,16.3561]
[1720875594339,2.8454566,140.68,140.61,16.3561]
[1720875594537,2.8454566,140.67,140.61,16.3561]
[1720875594844,2.8454566,140.66,140.61,16.3561]
[1720875595031,45.0,140.69,140.61,16.3561]
[1720875595215,2.84543702,140.68,140.61,16.3561]
[1720875595414,2.84543702,140.67,140.61,16.3561]
[1720875595833,2.84559536,140.66,140.61,16.3561]
[1720875596032,45.0,140.69,140.61,16.3561]
[1720875596355,2.84555883,140.68,140.61,16.3561]
[1720875596541,2.84555883,140.67,140.61,16.3561]
[1720875596729,2.84555883,140.68,140.61,16.3561]
[1720875597037,45.0,140.69,140.61,16.3561]
[1720875597038,2.84555883,140.67,140.61,16.3561]
[1720875597219,2.84555883,140.68,140.61,16.3561]
[1720875598529,2.84555883,140.68,140.61,17.77830669]
[1720875599335,2.84541279,140.67,140.61,17.77830669]
[1720875599540,2.84541279,140.66,140.61,17.77830669]
[1720875599833,45.0,140.69,140.61,16.3561]
[1720875600038,2.84544934,140.68,140.61,16.3561]
[1720875600255,2.84544934,140.67,140.61,16.3561]
[1720875600640,2.84544934,140.66,140.61,17.77831728]
[1720875600952,45.0,140.69,140.61,17.77831728]
[1720875601152,2.84528363,140.68,140.61,17.77831728]
[1720875601456,2.84528363,140.67,140.61,16.3561]
[1720875601656,2.84545098,140.66,140.61,16.3561]
[1720875601859,45.0,140.69,140.61,16.3561]
[1720875602231,2.84544934,140.68,140.61,16.3561]
[1720875602430,2.84544934,140.67,140.61,16.3561]
[1720875602642,2.84544934,140.66,140.62,6.0251]
[1720875602846,2.82740119,140.71,140.62,6.0251]
[1720875603057,2.84524302,140.7,140.62,6.0251]
[1720875603258,2.84524302,140.69,140.62,6.0251]
[1720875603430,2.84524302,140.68,140.62,6.0251]
[1720875603630,2.84524302,140.67,140.62,6.0251]
[1720875603864,2.84524302,140.66,140.62,6.0251]
[1720875604041,31.39,140.7,140.62,6.0251]
[1720875604248,31.39,140.68,140.62,6.0251]
[1720875604435,45.0,140.67,140.62,6.0251]
[1720875610944,55.0,140.67,140.62,6.0251]
[1720875611760,45.0,140.67,140.62,6.0251]
[1720875612053,55.0,140.67,140.62,6.0251]
[1720875612742,45.0,140.67,140.62,6.0251]
[1720875612943,55.0,140.67,140.62,6.0251]
[1720875614057,45.0,140.67,140.62,6.0251]
[1720875615442,76.39,140.67,140.61,16.3561]
[1720875615847,83.82833058,140.67,140.61,16.3561]
[1720875618549,73.82833058,140.67,140.61,16.3561]
[1720875618747,66.39,140.67,140.61,16.3561]
[1720875618945,45.0,140.67,140.61,16.3561]
[1720875619148,8.82338974,140.73,140.63,15.5178]
[1720875619472,10.0,140.78,140.66,6.2891]
[1720875619674,7.43608021,140.78,140.67,1.42132713]
[1720875619975,21.39,140.8,140.69,21.8069]
[1720875620136,21.39,140.8,140.7,1.42121376]
[1720875620753,21.39,140.8,140.71,1.42121271]
[1720875621141,28.7628027,140.81,140.71,1.42121271]
[1720875621142,2.7827027,140.81,140.71,1.42121271]
[1720875621347,38.82568889,140.83,140.71,1.42121271]
[1720875621549,31.39,140.81,140.71,1.42121271]
[1720875621744,10.0,140.78,140.69,21.8069]
[1720875622046,10.31186674,140.83,140.69,21.8069]
[1720875622047,10.0,140.8,140.69,21.8069]
[1720875622253,10.0,140.78,140.69,21.8069]
[1720875623646,45.0,140.77,140.69,21.8069]
[1720875624736,45.0,140.78,140.69,21.8069]
[1720875624940,45.0,140.79,140.69,21.8069]
[1720875625362,45.0,140.79,140.7,1.42120713]
[1720875625570,45.0,140.79,140.69,21.8069]
[1720875626169,45.0,140.79,140.7,1.42120773]
[1720875626772,45.0,140.79,140.71,1.421198]
[1720875627372,45.0,140.79,140.69,21.8069]
[1720875627548,45.0,140.79,140.7,1.42120507]
[1720875627751,45.0,140.79,140.71,1.4212038]
[1720875628772,45.0,140.79,140.7,1.42120453]
[1720875628967,45.0,140.79,140.69,21.8069]
[1720875629174,10.0,140.78,140.69,21.8069]
[1720875629474,45.0,140.77,140.7,1.42141725]
[1720875629849,45.0,140.77,140.69,21.8069]
[1720875630760,45.0,140.77,140.7,1.42129944]
[1720875632651,45.0,140.77,140.69,21.8069]
[1720875633990,10.0,140.77,140.69,21.8069]
[1720875634277,45.0,140.76,140.69,21.8069]
[1720875634482,66.39,140.76,140.69,21.8069]
[1720875634651,10.0,140.75,140.69,21.8069]
[1720875634851,45.0,140.74,140.69,21.8069]
[1720875635949,10.0,140.73,140.65,22.5789]
[1720875636256,45.0,140.72,140.65,22.5789]
[1720875638861,10.0,140.71,140.65,22.5789]
[1720875639182,45.0,140.7,140.65,22.5789]
[1720875641186,31.39,140.76,140.66,1.42201574]
[1720875641689,21.39,140.77,140.66,1.42201574]
[1720875642178,38.8244563,140.78,140.66,1.42201574]
[1720875642381,41.6307266,140.78,140.66,1.42201574]
[1720875642798,45.0,140.77,140.66,1.42201574]
[1720875642958,66.39,140.77,140.66,1.42201574]
[1720875644066,45.0,140.77,140.67,6.5303]
[1720875644275,45.0,140.77,140.68,1.42143678]
[1720875646885,45.0,140.77,140.69,16.0486]
[1720875647771,45.0,140.77,140.69,17.4699395]
[1720875647965,45.0,140.77,140.7,6.5803]
[1720875648187,2.77358038,140.81,140.71,1.42116051]
[1720875648482,10.0,140.8,140.71,1.42116051]
[1720875648689,17.43134208,140.82,140.71,1.42116051]
[1720875648991,21.39,140.81,140.71,1.42116051]
[1720875649581,10.0,140.8,140.71,1.42116051]
[1720875649863,45.0,140.79,140.71,1.42116051]
[1720875650676,45.0,140.8,140.71,1.42116051]
[1720875651984,17.43134208,140.82,140.72,15.7299]
[1720875652185,7.43134208,140.82,140.73,1.42090012]
[1720875652371,17.43134208,140.82,140.72,17.15079973]
[1720875653576,17.43134208,140.82,140.73,1.42097827]
[1720875654102,45.0,140.81,140.74,6.5803]
[1720875654399,31.39,140.8,140.74,6.5803]
[1720875654692,45.0,140.79,140.74,6.5803]
[1720875661871,31.39,140.78,140.72,15.7299]
[1720875662076,45.0,140.77,140.72,15.7299]
[1720875664195,2.84144093,140.76,140.72,15.7299]
[1720875664374,45.0,140.77,140.72,15.7299]
[1720875664580,2.84144093,140.76,140.72,15.7299]
[1720875664774,45.0,140.77,140.72,15.7299]
[1720875664975,2.84144175,140.76,140.72,15.7299]
[1720875665201,2.84144175,140.75,140.72,15.7299]
[1720875665411,45.0,140.77,140.72,15.7299]
[1720875665584,2.84144093,140.76,140.72,15.7299]
[1720875665791,2.84144093,140.75,140.72,15.7299]
[1720875665992,2.84144093,140.76,140.72,15.7299]
[1720875666183,2.84182909,140.75,140.72,15.7299]
[1720875666386,45.0,140.77,140.72,15.7299]
[1720875666699,2.84182991,140.76,140.72,15.7299]
[1720875666878,2.84182991,140.75,140.72,15.7299]
[1720875667079,45.0,140.77,140.72,15.7299]
[1720875667279,2.84170383,140.76,140.72,15.7299]
[1720875667580,31.39,140.8,140.72,15.7299]
[1720875667802,2.84125263,140.79,140.72,15.7299]
[1720875668103,2.84132482,140.78,140.72,15.7299]
[1720875668307,2.84132482,140.77,140.72,15.7299]
[1720875668487,2.84132482,140.79,140.72,15.7299]
[1720875668809,2.84132482,140.78,140.72,15.7299]
[1720875669105,2.84132482,140.77,140.72,15.7299]
[1720875669308,47.84132482,140.77,140.72,15.7299]
[1720875669604,2.84132482,140.76,140.72,15.7299]
[1720875669804,47.84132482,140.76,140.72,15.7299]
[1720875669991,45.0,140.76,140.72,15.7299]
[1720875673790,2.84159143,140.75,140.72,15.7299]
[1720875673992,45.0,140.75,140.7,6.5803]
[1720875674791,2.84226829,140.74,140.7,6.5803]
[1720875674993,47.84226829,140.74,140.69,15.4689]
[1720875675409,2.84257363,140.73,140.69,15.4689]
[1720875675721,45.0,140.75,140.67,6.1774]
[1720875675722,10.0,140.74,140.67,6.1774]
[1720875675892,47.84280098,140.73,140.67,6.1774]
[1720875676092,2.84280098,140.72,140.67,6.1774]
[1720875678006,45.0,140.73,140.67,6.1774]
[1720875678216,2.84383533,140.72,140.67,6.1774]
[1720875678393,2.84383533,140.71,140.67,6.1774]
[1720875678594,45.0,140.73,140.67,6.1774]
[1720875678804,2.84353737,140.72,140.67,6.1774]
[1720875679093,2.84353737,140.71,140.67,6.1774]
[1720875679301,45.0,140.73,140.67,6.1774]
[1720875679501,2.84368676,140.72,140.67,6.1774]
[1720875679709,2.84368676,140.71,140.67,6.1774]
[1720875679914,2.84368676,140.72,140.67,6.1774]
[1720875680100,2.84383615,140.71,140.67,6.1774]
[1720875680304,45.0,140.73,140.67,6.1774]
[1720875680502,2.84368512,140.72,140.67,6.1774]
[1720875680717,2.84368512,140.71,140.67,6.1774]
[1720875681013,45.0,140.73,140.67,6.1774]
[1720875681310,2.84368512,140.72,140.67,6.1774]
[1720875681515,45.0,140.73,140.67,6.1774]
[1720875681696,2.84368594,140.72,140.67,6.1774]
[1720875682717,2.84368594,140.72,140.65,15.4689]
[1720875682718,34.23368594,140.72,140.65,15.4689]
[1720875682895,47.84368594,140.71,140.65,15.4689]
[1720875683100,2.84368594,140.7,140.65,15.4689]
[1720875683615,2.84368594,140.7,140.63,6.1774]
[1720875683616,24.23368594,140.7,140.63,6.1774]
[1720875683819,47.84368594,140.69,140.63,6.1774]
[1720875684013,45.0,140.69,140.63,6.1774]
[1720875685222,2.84488401,140.68,140.63,6.1774]
[1720875685519,45.0,140.69,140.63,6.1774]
[1720875686119,2.8449425,140.68,140.63,6.1774]
[1720875686437,45.0,140.69,140.63,6.1774]
[1720875687314,45.0,140.69,140.63,7.59948998]
[1720875687708,45.0,140.69,140.63,6.1774]
[1720875692122,76.4,140.7,140.63,6.1774]
[1720875692327,2.84500508,140.69,140.63,6.1774]
[1720875692528,76.4,140.7,140.63,6.1774]
[1720875692717,55.0,140.7,140.63,6.1774]
[1720875693228,2.84502621,140.69,140.63,6.1774]
[1720875693421,55.0,140.7,140.63,6.1774]
[1720875693953,76.4,140.7,140.62,15.4689]
[1720875694238,10.0,140.68,140.62,15.4689]
[1720875694422,45.0,140.67,140.62,15.4689]
[1720875696515,45.0,140.67,140.59,22.0375]
[1720875697035,1.65139761,140.66,140.59,22.0375]
[1720875697612,11.65139761,140.66,140.59,22.0375]
[1720875697929,45.0,140.65,140.59,22.0375]
[1720875698141,45.0,140.65,140.55,22.0375]
[1720875698917,66.4,140.65,140.55,22.0375]
[1720875699239,10.0,140.64,140.55,22.0375]
[1720875699448,45.0,140.63,140.55,22.0375]
[1720875701221,45.0,140.63,140.56,1.42278812]
[1720875702142,46.65139761,140.63,140.56,1.42278812]
[1720875704229,46.65139761,140.63,140.55,22.0375]
[1720875704733,1.65139761,140.62,140.55,22.0375]
[1720875705777,11.65139761,140.62,140.55,22.0375]
[1720875705940,45.0,140.61,140.55,22.0375]
[1720875706778,45.0,140.61,140.55,6.0303]
[1720875707062,1.65139761,140.6,140.55,6.0303]
[1720875707464,1.65139761,140.6,140.54,0.7586122]
[1720875707783,11.65139761,140.6,140.54,0.7586122]
[1720875708063,45.0,140.59,140.54,0.7586122]
[1720875709758,1.65139761,140.6,140.54,0.7586122]
[1720875735385,33.05139761,140.6,140.54,0.7586122]
[1720875735590,45.0,140.59,140.54,0.7586122]
[1720875737202,1.65139761,140.58,140.54,0.7586122]
[1720875741998,1.65139761,140.58,140.54,0.13425498]
[1720875750924,2.84837424,140.57,140.54,0.13425498]
[1720875751224,45.0,140.57,140.54,0.13425498]
[1720875756938,1.65139761,140.58,140.54,0.13425498]
[1720875756939,46.65139761,140.58,140.54,0.13425498]
[1720875757107,2.84848641,140.57,140.54,0.13425498]
[1720875757309,45.0,140.57,140.54,0.13425498]
[1720875758024,45.0,140.56,140.54,0.13425498]
[1720875758524,45.0,140.57,140.54,0.13425498]
[1720875758736,2.84912372,140.56,140.54,0.13425498]
[1720875758906,45.0,140.57,140.54,0.13425498]
[1720875759230,2.84878753,140.56,140.54,0.13425498]
[1720875759434,45.0,140.57,140.54,0.13425498]
[1720875759615,1.65139761,140.58,140.54,0.13425498]
[1720875759809,2.84845046,140.57,140.54,0.13425498]
[1720875760010,1.65139761,140.58,140.54,0.13425498]
[1720875760211,2.84867482,140.57,140.54,0.13425498]
[1720875760419,1.65139761,140.58,140.54,0.13425498]
[1720875760714,2.84867482,140.57,140.54,0.13425498]
[1720875761018,45.0,140.57,140.54,0.13425498]
[1720875761216,46.65139761,140.58,140.54,0.13425498]
[1720875761614,2.84848703,140.57,140.54,0.13425498]
[1720875761939,45.0,140.57,140.54,0.13425498]
[1720875762422,46.65139761,140.58,140.54,0.13425498]
[1720875762628,2.84852524,140.57,140.54,0.13425498]
[1720875762809,45.0,140.57,140.54,0.13425498]
[1720875763307,46.65139761,140.58,140.54,0.13425498]
[1720875763508,2.84852524,140.57,140.54,0.13425498]
[1720875763717,45.0,140.57,140.54,0.13425498]
[1720875764119,46.65139761,140.58,140.54,0.13425498]
[1720875764321,2.84845951,140.57,140.54,0.13425498]
[1720875764637,45.0,140.57,140.54,0.13425498]
[1720875764814,46.65139761,140.58,140.54,0.13425498]
[1720875766939,2.84819778,140.57,140.54,0.13425498]
[1720875767131,45.0,140.57,140.54,0.13425498]
[1720875767517,46.65139761,140.58,140.54,0.13425498]
[1720875767834,2.84834816,140.57,140.54,0.13425498]
[1720875768038,47.84834734,140.57,140.54,0.13425498]
[1720875768238,45.0,140.57,140.54,0.13425498]
[1720875768542,46.65139761,140.58,140.54,0.13425498]
[1720875768745,2.84841736,140.57,140.54,0.13425498]
[1720875768909,45.0,140.57,140.54,0.13425498]
[1720875769326,46.65139761,140.58,140.54,0.13425498]
[1720875769534,2.84831076,140.57,140.54,0.13425498]
[1720875769731,45.0,140.57,140.54,0.13425498]
[1720875770118,46.65139761,140.58,140.54,0.13425498]
[1720875770318,2.84856161,140.57,140.54,0.13425498]
[1720875770519,45.0,140.57,140.54,0.13425498]
[1720875770738,2.84854044,140.56,140.54,0.13425498]
[1720875770938,45.0,140.56,140.54,0.13425498]
[1720875771323,2.84912343,140.55,140.54,0.13425498]
[1720875771634,45.0,140.55,140.54,0.13425498]
[1720875777335,1.65139761,140.58,140.54,0.13425498]
[1720875777525,2.84835511,140.57,140.54,0.13425498]
[1720875777724,45.0,140.57,140.54,0.13425498]
[1720875778239,46.65139761,140.58,140.54,0.13425498]
[1720875778543,2.84865182,140.57,140.54,0.13425498]
[1720875778736,45.0,140.57,140.54,0.13425498]
[1720875779130,46.65139761,140.58,140.54,0.13425498]
[1720875779443,2.84850223,140.57,140.54,0.13425498]
[1720875779644,45.0,140.57,140.54,0.13425498]
[1720875780441,46.65139761,140.58,140.54,0.13425498]
[1720875782037,46.65139761,140.58,140.54,1.55717415]
[1720875782639,46.65139761,140.58,140.54,0.13425498]
[1720875783432,1.65139761,140.58,140.54,0.13425498]
[1720875783742,1.65139761,140.58,140.54,1.55722576]
[1720875784453,37.6305,140.64,140.54,1.55722576]
[1720875784649,2.84697573,140.63,140.54,1.55722576]
[1720875784853,2.84697573,140.62,140.54,1.55722576]
[1720875785149,2.84652886,140.61,140.54,1.55722576]
[1720875785353,25.99801194,140.66,140.54,1.55722576]
[1720875785545,2.84639232,140.65,140.54,1.55722576]
[1720875785731,2.84639232,140.64,140.54,1.55722576]
[1720875785933,2.84639232,140.63,140.55,6.2341]
[1720875786145,2.84639232,140.62,140.56,1.42247669]
[1720875786351,25.99801194,140.66,140.56,1.42247669]
[1720875786655,47.8464687,140.65,140.56,1.42247669]
[1720875786951,2.8464687,140.64,140.56,1.42247669]
[1720875787250,2.8464687,140.63,140.56,1.42247669]
[1720875787441,2.8464687,140.62,140.56,1.42247669]
[1720875787770,18.57701939,140.66,140.57,16.1901]
[1720875787941,2.84642723,140.65,140.58,1.42240229]
[1720875788143,2.84642723,140.64,140.58,1.42240229]
[1720875788348,2.84642723,140.63,140.58,1.42240229]
[1720875788549,2.84642723,140.62,140.58,1.42240229]
[1720875788755,2.84642723,140.65,140.58,1.42240229]
[1720875789266,45.0,140.65,140.58,1.42240229]
[1720875789427,2.84646511,140.64,140.58,1.42240229]
[1720875789631,47.84646511,140.64,140.58,1.42240229]
[1720875790044,45.0,140.63,140.58,1.42240229]
[1720875790652,2.84646511,140.64,140.58,1.42240229]
[1720875791760,2.84646511,140.63,140.58,1.42240229]
[1720875791945,45.0,140.65,140.58,1.42240229]
[1720875792143,2.84616778,140.64,140.58,1.42240229]
[1720875792350,2.84616778,140.63,140.58,1.42240229]
[1720875792657,45.0,140.65,140.58,1.42240229]
[1720875792859,2.84616614,140.64,140.58,1.42240229]
[1720875793160,2.84616614,140.63,140.58,1.42240229]
[1720875793356,2.84616614,140.64,140.58,1.42240229]
[1720875793665,45.0,140.65,140.58,1.42240229]
[1720875793955,2.84601892,140.64,140.58,1.42240229]
[1720875794133,7.41994202,140.69,140.59,6.1415]
[1720875794334,2.84523503,140.68,140.61,16.1901]
[1720875794567,2.84523503,140.67,140.62,1.42206044]
[1720875794761,16.0835,140.71,140.62,1.42206044]
[1720875795058,2.84494736,140.7,140.62,1.42206044]
[1720875795240,2.84494736,140.69,140.62,1.42206044]
[1720875795436,2.84494736,140.68,140.62,1.42206044]
[1720875795641,2.84494736,140.71,140.63,6.1415]
[1720875795961,16.0835,140.75,140.64,17.61175381]
[1720875796130,2.84325526,140.74,140.65,1.42164675]
[1720875796336,2.84325526,140.73,140.65,1.42164675]
[1720875796563,2.84325526,140.72,140.65,1.42164675]
[1720875796857,16.0835,140.75,140.65,1.42164675]
[1720875797256,47.8431159,140.74,140.65,1.42164675]
[1720875797562,45.0,140.74,140.65,1.42164675]
[1720875797773,2.84311671,140.73,140.65,1.42164675]
[1720875797938,45.0,140.74,140.65,1.42164675]
[1720875802966,55.0,140.74,140.65,1.42164675]
[1720875804894,45.0,140.74,140.65,1.42164675]
[1720875806692,45.0,140.74,140.64,16.1901]
[1720875806991,45.0,140.74,140.65,1.42167337]
[1720875809495,45.0,140.74,140.64,16.1901]
[1720875809794,45.0,140.74,140.65,1.42165953]
[1720875811285,10.0,140.78,140.66,6.3399]
[1720875811477,22.7117,140.79,140.68,16.5798]
[1720875811673,22.7117,140.79,140.69,1.42129808]
[1720875811875,16.3212,140.79,140.69,1.42129808]
[1720875812078,7.42082712,140.81,140.7,6.3399]
[1720875812296,7.42082712,140.81,140.71,1.42106342]
[1720875812503,28.82082712,140.81,140.71,1.42106342]
[1720875813181,10.0,140.8,140.71,1.42106342]
[1720875813988,31.4,140.8,140.7,6.3399]
[1720875814192,10.0,140.78,140.7,6.3399]
[1720875814573,45.0,140.77,140.7,6.3399]
[1720875820113,10.0,140.76,140.7,6.3399]
[1720875820309,45.0,140.75,140.68,16.5798]
[1720875822015,10.0,140.74,140.68,16.5798]
[1720875822192,45.0,140.73,140.68,16.5798]
[1720875823009,45.0,140.74,140.68,16.5798]
[1720875823186,45.0,140.75,140.68,16.5798]
[1720875823909,66.4,140.75,140.68,16.5798]
[1720875825290,10.0,140.74,140.68,16.5798]
[1720875825608,45.0,140.73,140.68,16.5798]
[1720875826681,10.0,140.72,140.65,6.3399]
[1720875826994,66.4,140.73,140.65,6.3399]
[1720875826995,10.0,140.7,140.65,6.3399]
[1720875827209,45.0,140.69,140.64,16.5798]
[1720875827988,45.0,140.69,140.62,6.3399]
[1720875830207,45.0,140.7,140.62,6.3399]
[1720875832821,55.0,140.7,140.62,6.3399]
[1720875833020,2.84513194,140.69,140.62,6.3399]
[1720875833197,55.0,140.7,140.62,6.3399]
[1720875833399,2.84511761,140.69,140.62,6.3399]
[1720875833626,45.0,140.7,140.62,6.3399]
[1720875833923,2.84511843,140.69,140.62,6.3399]
[1720875834096,45.0,140.7,140.62,6.3399]
[1720875834296,2.84509706,140.69,140.62,6.3399]
[1720875834496,45.0,140.7,140.62,6.3399]
[1720875834699,2.84509706,140.69,140.62,6.3399]
[1720875834915,45.0,140.7,140.62,6.3399]
[1720875835117,2.84509706,140.69,140.62,6.3399]
[1720875835303,55.0,140.7,140.62,6.3399]
[1720875835621,2.8451336,140.69,140.62,6.3399]
[1720875835798,45.0,140.7,140.62,6.3399]
[1720875836119,2.8451336,140.69,140.63,1.42203994]
[1720875836417,28.81625762,140.73,140.63,1.42203994]
[1720875836615,2.84432848,140.72,140.63,1.42203994]
[1720875836821,2.84432848,140.71,140.63,1.42203994]
[1720875837019,7.41625762,140.73,140.63,1.42203994]
[1720875837323,2.8442118,140.72,140.63,1.42203994]
[1720875837515,2.8442118,140.71,140.63,1.42203994]
[1720875837830,45.0,140.71,140.63,1.42203994]
[1720875838122,2.84436119,140.7,140.63,1.42203994]
[1720875838327,45.0,140.7,140.63,1.42203994]
[1720875840705,45.0,140.7,140.64,16.1199]
[1720875840907,45.0,140.7,140.65,1.4218062]
[1720875841628,45.0,140.7,140.64,17.54170772]
[1720875842235,45.0,140.7,140.65,1.4218281]
[1720875843100,45.0,140.7,140.64,16.1199]
[1720875843628,45.0,140.7,140.65,1.42182921]
[1720875844714,45.0,140.7,140.66,6.2959]
[1720875844920,45.0,140.7,140.67,1.42161001]
[1720875847915,45.0,140.7,140.66,7.71751985]